bitfinex-derivatives/quotes_BTCF0:USTF0_20250918
["timestamp","ask_amount","ask_price","bid_price","bid_amount"]
[1758231623908,1.67084436,117440.0,117430.0,0.91818]
[1758231624211,0.90192436,117440.0,117430.0,0.91818]
[1758231624409,1.67080436,117440.0,117430.0,0.91818]
[1758231624909,1.65099646,117440.0,117430.0,0.91818]
[1758231627915,1.67056459,117440.0,117430.0,0.91818]
[1758231630716,0.90168459,117440.0,117430.0,0.91818]
[1758231630917,1.67044459,117440.0,117430.0,0.91818]
[1758231633018,0.90168459,117440.0,117430.0,0.91818]
[1758231633416,1.67040459,117440.0,117430.0,0.91818]
[1758231637521,0.90168459,117440.0,117430.0,0.91818]
[1758231637722,1.67048459,117440.0,117430.0,0.91818]
[1758231645927,1.38909645,117440.0,117430.0,0.91818]
[1758231654729,1.38889645,117440.0,117430.0,0.91818]
[1758231654918,0.62029645,117440.0,117430.0,0.91818]
[1758231655920,1.38885645,117440.0,117430.0,0.91818]
[1758231677942,1.38885645,117440.0,117430.0,0.8961]
[1758231677943,1.92079561,117440.0,117430.0,0.8961]
[1758231678247,1.92079561,117440.0,117430.0,0.6061]
[1758231679348,1.91979561,117440.0,117430.0,0.6041]
[1758231679551,2.80979561,117440.0,117430.0,0.6041]
[1758231680246,2.80979561,117440.0,117430.0,0.1541]
[1758231680550,2.80979561,117440.0,117430.0,0.1521]
[1758231683257,2.87628157,117440.0,117430.0,0.1521]
[1758231684455,1.98628157,117440.0,117430.0,0.1521]
[1758231688454,1.98628157,117440.0,117430.0,0.0021]
[1758231696860,3.77992157,117440.0,117430.0,0.0021]
[1758231699263,3.52992157,117440.0,117430.0,0.0021]
[1758231702763,2.76136157,117440.0,117430.0,0.0021]
[1758231703369,3.52988157,117440.0,117430.0,0.0021]
[1758231707970,3.95341227,117440.0,117430.0,0.0021]
[1758231714773,3.95371965,117440.0,117430.0,0.0021]
[1758231715677,3.18519965,117440.0,117430.0,0.0021]
[1758231716177,3.18519965,117440.0,117430.0,0.2521]
[1758231716373,3.95371965,117440.0,117430.0,0.2521]
[1758231717179,3.18519965,117440.0,117430.0,0.2521]
[1758231717377,3.95371965,117440.0,117430.0,0.2521]
[1758231718378,3.93384414,117440.0,117430.0,0.2521]
[1758231718778,3.18484063,117440.0,117430.0,0.2521]
[1758231719074,3.95336063,117440.0,117430.0,0.2521]
[1758231719280,3.93384414,117440.0,117430.0,0.2521]
[1758231720282,3.95356779,117440.0,117430.0,0.2521]
[1758231722877,3.95332018,117440.0,117430.0,0.2521]
[1758231723681,3.88683422,117440.0,117430.0,0.2521]
[1758231725683,2.09319422,117440.0,117430.0,0.2521]
[1758231738310,2.09319422,117440.0,117430.0,0.27405]
[1758231743712,1.32467422,117440.0,117430.0,0.02405]
[1758231743906,2.09315422,117440.0,117430.0,0.02405]
[1758231747712,1.32467422,117440.0,117430.0,0.02405]
[1758231747909,2.56003816,117440.0,117430.0,0.27405]
[1758231752207,0.90155816,117440.0,117430.0,0.02405]
[1758231752408,1.66999816,117440.0,117430.0,0.27405]
[1758231753814,0.82376604,117440.0,117430.0,0.27405]
[1758231754413,1.66999816,117440.0,117430.0,0.27405]
[1758231757112,0.90155816,117440.0,117430.0,0.65405]
[1758231757410,0.82376604,117440.0,117430.0,0.65405]
[1758231757616,1.66999816,117440.0,117430.0,0.65405]
[1758231759417,1.66999816,117440.0,117430.0,0.40405]
[1758231763919,1.65052212,117440.0,117430.0,0.40405]
[1758231764122,1.67055833,117440.0,117430.0,0.40405]
[1758231764622,1.67051833,117440.0,117430.0,0.40405]
[1758231767223,0.90211833,117440.0,117430.0,0.40405]
[1758231767624,1.65044212,117440.0,117430.0,0.82716606]
[1758231767831,1.38762883,117440.0,117430.0,0.40405]
[1758231783732,0.61926883,117440.0,117430.0,0.40405]
[1758231784037,1.38758883,117440.0,117430.0,0.40405]
[1758231785439,1.38807147,117440.0,117430.0,0.40405]
[1758231786841,1.36802712,117440.0,117430.0,0.40405]
[1758231787143,1.38805737,117440.0,117430.0,0.40405]
[1758231788837,1.36802712,117440.0,117430.0,0.40405]
[1758231789035,1.38760877,117440.0,117430.0,0.40405]
[1758231790444,1.36802712,117440.0,117430.0,0.40405]
[1758231791342,1.10603427,117440.0,117430.0,0.40405]
[1758231793444,1.38796283,117440.0,117430.0,0.40405]
[1758231793847,1.10603427,117440.0,117430.0,0.40405]
[1758231801453,1.38796283,117440.0,117430.0,0.40405]
[1758231804956,1.10603427,117440.0,117430.0,0.40405]
[1758231806357,1.08609856,117440.0,117430.0,0.40405]
[1758231807459,1.10630902,117440.0,117430.0,0.40405]
[1758231809956,1.08609856,117440.0,117430.0,0.40405]
[1758231810161,1.10585858,117440.0,117430.0,0.40405]
[1758231810954,1.08609856,117440.0,117430.0,0.40405]
[1758231811159,1.10597839,117440.0,117430.0,0.40405]
[1758231812763,1.10597839,117440.0,117430.0,0.63405]
[1758231814364,1.10587844,117440.0,117430.0,0.63405]
[1758231814863,1.387807,117440.0,117430.0,0.63405]
[1758231818166,1.38750864,117440.0,117430.0,0.63405]
[1758231821669,1.36792717,117440.0,117430.0,0.63405]
[1758231827670,1.36792717,117440.0,117430.0,0.42405]
[1758231827876,1.36792717,117440.0,117430.0,0.0521]
[1758231829376,1.36792717,117440.0,117430.0,0.0743]
[1758231829864,1.65000841,117440.0,117430.0,0.0743]
[1758231830679,2.32297759,117440.0,117430.0,0.0521]
[1758231830883,2.32297759,117440.0,117430.0,0.0021]
[1758231835778,2.32297759,117440.0,117430.0,0.0011]
[1758231835981,2.32397759,117440.0,117430.0,0.0011]
[1758231836774,1.05507005,117440.0,117430.0,0.0011]
[1758231836977,2.32297759,117440.0,117430.0,0.0001]
[1758231837273,2.32497759,117440.0,117430.0,0.0011]
[1758231841374,0.01348,117430.0,117420.0,0.0001]
[1758231841580,0.45949918,117430.0,117420.0,0.17]
[1758231843273,0.46049918,117430.0,117420.0,0.171]
[1758231845683,0.46924045,117430.0,117420.0,0.171]
[1758231853786,0.46824045,117430.0,117420.0,0.17]
[1758231853998,0.47024045,117430.0,117420.0,0.171]
[1758231854292,0.47124045,117430.0,117420.0,0.171]
[1758231858197,0.89420963,117430.0,117420.0,0.171]
[1758231858399,0.89420963,117430.0,117420.0,0.001]
[1758231869999,1.31717881,117430.0,117420.0,0.001]
[1758231870201,0.89420963,117430.0,117420.0,0.001]
[1758231872500,1.31717881,117430.0,117420.0,0.001]
[1758231872802,0.89420963,117430.0,117420.0,0.001]
[1758231874901,1.31717881,117430.0,117420.0,0.001]
[1758231875102,0.89420963,117430.0,117420.0,0.001]
[1758231880506,1.31717881,117430.0,117420.0,0.001]
[1758231883309,0.89420963,117430.0,117420.0,0.001]
[1758231883907,2.68800963,117430.0,117420.0,0.001]
[1758231891715,2.40625701,117430.0,117420.0,0.001]
[1758231896927,0.61245701,117430.0,117420.0,0.001]
[1758231900122,1.38113701,117430.0,117420.0,0.001]
[1758231904627,0.81695127,117430.0,117420.0,0.001]
[1758231904928,1.38113701,117430.0,117420.0,0.001]
[1758231905429,0.61245701,117430.0,117420.0,0.001]
[1758231905631,1.38109701,117430.0,117420.0,0.001]
[1758231907828,0.61245701,117430.0,117420.0,0.001]
[1758231908030,1.38145701,117430.0,117420.0,0.001]
[1758231912531,0.81727127,117430.0,117420.0,0.001]
[1758231912734,1.38145701,117430.0,117420.0,0.001]
[1758231951780,1.66351337,117430.0,117420.0,0.001]
[1758231953478,0.89451337,117430.0,117420.0,0.001]
[1758231953677,1.66315337,117430.0,117420.0,0.001]
[1758231956183,1.6543721,117430.0,117420.0,0.02278]
[1758231957279,1.6543721,117430.0,117420.0,0.001]
[1758231959280,1.6543721,117430.0,117420.0,0.02278]
[1758231959483,0.8857721,117430.0,117420.0,0.02278]
[1758231959670,1.6543321,117430.0,117420.0,0.02278]
[1758231959873,1.6543321,117430.0,117420.0,0.001]
[1758231960073,0.8857721,117430.0,117420.0,0.001]
[1758231960582,1.6543321,117430.0,117420.0,0.001]
[1758231962883,0.8857721,117430.0,117420.0,0.001]
[1758231963084,1.6542921,117430.0,117420.0,0.001]
[1758231964886,0.8857721,117430.0,117420.0,0.02278]
[1758231965185,1.6542921,117430.0,117420.0,0.02278]
[1758231968890,1.6542921,117430.0,117420.0,0.001]
[1758231969282,1.6542921,117430.0,117420.0,0.02278]
[1758231976792,1.6542921,117430.0,117420.0,0.001]
[1758231977699,1.6542921,117430.0,117420.0,0.02278]
[1758231980198,1.6542921,117430.0,117420.0,0.001]
[1758231980594,1.6542921,117430.0,117420.0,0.02278]
[1758231980795,1.6542921,117430.0,117420.0,0.001]
[1758231981899,1.6542921,117430.0,117420.0,0.02278]
[1758231982496,1.6542921,117430.0,117420.0,0.001]
[1758231985101,1.6542921,117430.0,117420.0,0.02413]
[1758231987900,2.5442921,117430.0,117420.0,0.02413]
[1758231990496,1.7757721,117430.0,117420.0,0.02413]
[1758231990701,2.5442921,117430.0,117420.0,0.02413]
[1758231991091,2.12117105,117430.0,117420.0,0.02413]
[1758231992802,2.5442921,117430.0,117420.0,0.02413]
[1758232000903,2.5442921,117430.0,117420.0,0.29413]
[1758232006017,1.69805,117430.0,117420.0,0.29413]
[1758232006208,2.12117105,117430.0,117420.0,0.29413]
[1758232007014,2.5442921,117430.0,117420.0,0.29413]
[1758232007412,1.6542921,117430.0,117420.0,0.29413]
[1758232008214,1.23117105,117430.0,117420.0,0.29413]
[1758232013819,1.09006631,117430.0,117420.0,0.29413]
[1758232019831,0.80805,117430.0,117420.0,0.29413]
[1758232020032,1.09006631,117430.0,117420.0,0.29413]
[1758232029134,0.32154631,117430.0,117420.0,0.54413]
[1758232029337,1.09038631,117430.0,117420.0,0.54413]
[1758232029545,1.09038631,117430.0,117420.0,0.77413]
[1758232036449,1.09038631,117430.0,117420.0,1.05614631]
[1758232036951,1.09038631,117430.0,117420.0,0.77413]
[1758232038751,1.09038631,117430.0,117420.0,1.05614631]
[1758232042457,0.80837,117430.0,117420.0,1.05614631]
[1758232042754,0.77184,117430.0,117420.0,1.43082602]
[1758232042959,0.77184,117430.0,117420.0,1.50082602]
[1758232043353,0.77184,117430.0,117420.0,1.77082602]
[1758232043864,0.003,117430.0,117420.0,1.77082602]
[1758232044057,0.77152,117430.0,117420.0,1.77082602]
[1758232044252,0.003,117430.0,117420.0,1.77082602]
[1758232044451,0.77152,117430.0,117420.0,1.92412233]
[1758232045159,0.77152,117430.0,117420.0,1.77082602]
[1758232045960,0.77152,117430.0,117420.0,1.92412233]
[1758232046862,0.77152,117430.0,117420.0,1.77082602]
[1758232054065,0.77152,117430.0,117420.0,1.92412233]
[1758232059067,0.77152,117430.0,117420.0,2.69248233]
[1758232059361,0.77152,117430.0,117420.0,2.44248233]
[1758232059557,0.003,117430.0,117420.0,2.44248233]
[1758232064570,0.003,117430.0,117420.0,2.57120233]
[1758232066966,0.003,117430.0,117420.0,2.28918602]
[1758232068172,0.003,117430.0,117420.0,1.52082602]
[1758232068475,0.003,117430.0,117420.0,2.28914602]
[1758232068657,0.003,117430.0,117420.0,1.52082602]
[1758232069271,0.003,117430.0,117420.0,2.44204559]
[1758232069962,0.003,117430.0,117420.0,1.67372559]
[1758232070275,0.003,117430.0,117420.0,2.44200559]
[1758232070667,0.003,117430.0,117420.0,1.67372559]
[1758232070863,0.003,117430.0,117420.0,2.7240219]
[1758232071564,0.003,117430.0,117420.0,2.57112233]
[1758232072270,0.003,117430.0,117420.0,2.82112233]
[1758232073972,0.003,117430.0,117420.0,2.05284233]
[1758232074175,0.003,117430.0,117420.0,2.38560212]
[1758232074768,0.0001,117440.0,117430.0,0.00736]
[1758232075069,0.76828,117470.0,117450.0,0.0982189]
[1758232075268,1.08544631,117470.0,117460.0,0.02273]
[1758232075869,1.22612087,117470.0,117460.0,0.44542087]
[1758232076269,1.23212087,117470.0,117460.0,0.44542087]
[1758232076575,1.23212087,117470.0,117460.0,0.45400748]
[1758232077577,1.22612087,117470.0,117460.0,0.52110153]
[1758232077770,1.23212087,117470.0,117460.0,0.52210153]
[1758232077976,1.23412087,117470.0,117460.0,0.88310153]
[1758232078276,1.23112087,117470.0,117460.0,0.88310153]
[1758232115512,0.80843,117470.0,117460.0,0.88310153]
[1758232115719,1.23112087,117470.0,117460.0,0.88310153]
[1758232116018,1.23112087,117470.0,117460.0,0.46041066]
[1758232116218,1.23112087,117470.0,117460.0,0.88310153]
[1758232117218,1.23112087,117470.0,117460.0,0.46041066]
[1758232117416,1.23112087,117470.0,117460.0,0.88310153]
[1758232121425,0.80843,117470.0,117460.0,0.88310153]
[1758232121920,1.23112087,117470.0,117460.0,0.88310153]
[1758232132230,1.23112087,117470.0,117460.0,0.46041066]
[1758232132531,1.23112087,117470.0,117460.0,0.88310153]
[1758232135740,1.09022177,117470.0,117460.0,0.46041066]
[1758232136626,0.80843,117470.0,117460.0,0.46041066]
[1758232136834,1.09022177,117470.0,117460.0,0.46041066]
[1758232139637,1.09022177,117470.0,117460.0,0.74220243]
[1758232142335,0.80823,117470.0,117460.0,0.74220243]
[1758232142531,1.07193,117470.0,117460.0,1.06524243]
[1758232142730,1.05807,117470.0,117460.0,1.06524243]
[1758232144340,1.05807,117470.0,117460.0,1.05524243]
[1758232145642,1.05807,117470.0,117460.0,1.08524243]
[1758232145844,1.05807,117470.0,117460.0,1.07524243]
[1758232148743,1.07141,117470.0,117460.0,1.07524243]
[1758232148943,1.07141,117470.0,117460.0,0.75524243]
[1758232149143,1.07141,117470.0,117460.0,1.04524243]
[1758232149751,1.05807,117470.0,117460.0,1.04524243]
[1758232152744,1.07141,117470.0,117460.0,1.04524243]
[1758232156652,1.07141,117470.0,117460.0,1.03220243]
[1758232166557,1.07141,117470.0,117460.0,0.75041066]
[1758232166761,1.07141,117470.0,117460.0,1.03220243]
[1758232174775,0.28999,117470.0,117460.0,1.3270642]
[1758232174964,1.0367,117470.0,117460.0,1.3270642]
[1758232176574,1.05889,117470.0,117460.0,0.76348066]
[1758232176871,1.05889,117470.0,117460.0,1.3270642]
[1758232185679,0.29089,117470.0,117460.0,1.3270642]
[1758232185884,1.05885,117470.0,117460.0,1.3270642]
[1758232186765,1.07265,117470.0,117460.0,1.30922066]
[1758232187072,1.07265,117470.0,117460.0,1.31906066]
[1758232187276,1.05885,117470.0,117460.0,1.31906066]
[1758232189086,0.29089,117470.0,117460.0,1.31906066]
[1758232189277,1.05885,117470.0,117460.0,1.47203436]
[1758232189783,0.29089,117470.0,117460.0,1.47203436]
[1758232190082,1.05885,117470.0,117460.0,1.47203436]
[1758232190282,1.07265,117470.0,117460.0,1.46219436]
[1758232190785,1.07265,117470.0,117460.0,1.17219436]
[1758232191075,1.07265,117470.0,117460.0,0.81861082]
[1758232191268,1.07265,117470.0,117460.0,1.38219436]
[1758232192286,1.07265,117470.0,117460.0,1.50219436]
[1758232192584,1.07265,117470.0,117460.0,1.34922066]
[1758232195789,1.07265,117470.0,117460.0,1.63086966]
[1758232198689,1.07265,117470.0,117460.0,1.64070966]
[1758232199889,1.07265,117470.0,117460.0,1.63086966]
[1758232202190,1.07265,117470.0,117460.0,1.78384336]
[1758232202582,0.30469,117470.0,117460.0,1.79368336]
[1758232202784,1.07317,117470.0,117460.0,1.79368336]
[1758232204192,1.07317,117470.0,117460.0,1.78384336]
[1758232205493,1.07317,117470.0,117460.0,1.63086966]
[1758232206791,0.79563,117470.0,117460.0,1.72580406]
[1758232207189,0.72330865,117470.0,117460.0,1.72580406]
[1758232207893,0.72330865,117470.0,117460.0,1.87877776]
[1758232208690,0.72330865,117470.0,117460.0,1.72580406]
[1758232216802,0.72330865,117470.0,117460.0,1.87877776]
[1758232222201,0.72330865,117470.0,117460.0,1.03354522]
[1758232222402,0.72330865,117470.0,117460.0,1.87877776]
[1758232233014,0.72330865,117470.0,117460.0,1.72580406]
[1758232236121,0.72330865,117470.0,117460.0,1.87877776]
[1758232239423,0.72330865,117470.0,117460.0,1.72580406]
[1758232245021,0.72330865,117470.0,117460.0,1.74288213]
[1758232248130,0.74591865,117470.0,117460.0,0.89764959]
[1758232248523,0.74591865,117470.0,117460.0,1.74288213]
[1758232248728,0.74591865,117470.0,117460.0,1.74292393]
[1758232254029,0.74591865,117470.0,117460.0,1.89589763]
[1758232257740,0.74591865,117470.0,117460.0,1.61410783]
[1758232262442,0.75883865,117470.0,117460.0,1.61410783]
[1758232263740,0.72330865,117470.0,117460.0,1.59893137]
[1758232267843,0.72330865,117470.0,117460.0,1.44595767]
[1758232276552,0.72330865,117470.0,117460.0,1.59909522]
[1758232277246,0.72330865,117470.0,117460.0,1.44595767]
[1758232278553,0.72330865,117470.0,117460.0,0.88251493]
[1758232278750,0.75736865,117470.0,117460.0,0.80602053]
[1758232278955,1.28909002,117470.0,117460.0,0.80602053]
[1758232279148,1.28909002,117470.0,117460.0,0.78480053]
[1758232281859,1.55279002,117470.0,117460.0,0.78480053]
[1758232283060,1.55279002,117470.0,117460.0,0.80602053]
[1758232294064,1.55279002,117470.0,117460.0,0.47602053]
[1758232294262,1.30279002,117470.0,117460.0,0.75480053]
[1758232295771,1.30279002,117470.0,117460.0,0.77685053]
[1758232298167,1.30279002,117470.0,117460.0,0.48685053]
[1758232298373,1.30279002,117470.0,117460.0,0.78685053]
[1758232298568,1.30279002,117470.0,117460.0,0.47685053]
[1758232298873,1.30279002,117470.0,117460.0,0.75685053]
[1758232299566,1.30279002,117470.0,117460.0,0.48685053]
[1758232299764,1.30279002,117470.0,117460.0,0.78685053]
[1758232304174,1.30279002,117470.0,117460.0,0.47826392]
[1758232304576,1.30279002,117470.0,117460.0,0.78621392]
[1758232305264,1.30279002,117470.0,117460.0,0.80826392]
[1758232305671,1.30279002,117470.0,117460.0,0.81663388]
[1758232309085,1.30279002,117470.0,117460.0,0.90172828]
[1758232309287,1.30279002,117470.0,117460.0,0.47663388]
[1758232309985,1.30279002,117470.0,117460.0,0.44621392]
[1758232312174,1.30279002,117470.0,117460.0,0.46826392]
[1758232312978,1.30279002,117470.0,117460.0,0.4766079]
[1758232314883,1.03909002,117470.0,117460.0,0.4766079]
[1758232315189,1.03909002,117470.0,117460.0,0.46826392]
[1758232315482,1.03909002,117470.0,117460.0,0.44621392]
[1758232315888,1.03909002,117470.0,117460.0,0.42621392]
[1758232319892,1.1800686,117470.0,117460.0,0.84891387]
[1758232320395,1.4437686,117470.0,117460.0,0.84891387]
[1758232320896,1.4437686,117470.0,117460.0,0.42621392]
[1758232329002,1.4437686,117470.0,117460.0,0.37911987]
[1758232335603,1.02106865,117470.0,117460.0,0.37911987]
[1758232335807,1.4437686,117470.0,117460.0,0.37911987]
[1758232338205,1.1800686,117470.0,117460.0,0.37911987]
[1758232341708,1.60276855,117470.0,117460.0,0.37911987]
[1758232341906,1.1800686,117470.0,117460.0,0.37911987]
[1758232343709,1.60276855,117470.0,117460.0,0.37911987]
[1758232343904,1.1800686,117470.0,117460.0,0.37911987]
[1758232344708,1.60276855,117470.0,117460.0,0.37911987]
[1758232350515,1.60276855,117470.0,117460.0,0.04911987]
[1758232359318,1.60276855,117470.0,117460.0,0.01911987]
[1758232360222,1.60276855,117470.0,117460.0,0.002]
[1758232360422,1.85276855,117470.0,117460.0,0.002]
[1758232361725,1.92208944,117470.0,117460.0,0.002]
[1758232368529,3.71528944,117470.0,117460.0,0.002]
[1758232371029,4.13798939,117470.0,117460.0,0.002]
[1758232371729,3.71528944,117470.0,117460.0,0.002]
[1758232379337,4.13798939,117470.0,117460.0,0.002]
[1758232379934,3.71528944,117470.0,117460.0,0.002]
[1758232381740,3.43372786,117470.0,117460.0,0.002]
[1758232399249,3.18372786,117470.0,117460.0,0.002]
[1758232400648,3.20316572,117470.0,117460.0,0.002]
[1758232404845,3.48508488,117470.0,117460.0,0.002]
[1758232405149,0.03597,117450.0,117440.0,0.0001]
[1758232405350,0.80469,117450.0,117440.0,0.0501]
[1758232405650,0.80469,117450.0,117440.0,0.0001]
[1758232406746,0.80569,117450.0,117440.0,0.0021]
[1758232407245,0.80569,117450.0,117440.0,0.0031]
[1758232407953,0.81425086,117450.0,117440.0,0.0031]
[1758232408154,1.70425086,117450.0,117440.0,0.0031]
[1758232410246,2.26808918,117450.0,117440.0,0.0031]
[1758232413056,1.37808918,117450.0,117440.0,0.0031]
[1758232441576,3.17172918,117450.0,117440.0,0.0031]
[1758232441875,3.87702991,117450.0,117440.0,0.0031]
[1758232445278,3.45398356,117450.0,117440.0,0.0031]
[1758232445468,3.45398356,117450.0,117440.0,0.02507]
[1758232445674,3.03093721,117450.0,117440.0,0.27507]
[1758232445873,3.45398356,117450.0,117440.0,0.27507]
[1758232448180,4.34398356,117450.0,117440.0,0.27507]
[1758232453078,3.45398356,117450.0,117440.0,0.27507]
[1758232454591,4.34398356,117450.0,117440.0,0.27507]
[1758232454785,4.34398356,117450.0,117440.0,0.02507]
[1758232456098,3.45398356,117450.0,117440.0,0.02507]
[1758232457995,4.34398356,117450.0,117440.0,0.02507]
[1758232463908,4.36380499,117450.0,117440.0,0.02507]
[1758232467510,4.36415306,117450.0,117440.0,0.02507]
[1758232471013,4.3555922,117450.0,117440.0,0.02507]
[1758232471916,4.36404865,117450.0,117440.0,0.02507]
[1758232473814,4.36404865,117450.0,117440.0,0.0031]
[1758232474315,4.36404865,117450.0,117440.0,0.02566]
[1758232477822,4.36404865,117450.0,117440.0,0.0031]
[1758232478518,4.36404865,117450.0,117440.0,0.02566]
[1758232484829,4.36404865,117450.0,117440.0,0.0031]
[1758232485328,4.36404865,117450.0,117440.0,0.02566]
[1758232490433,4.36404865,117450.0,117440.0,0.0031]
[1758232496738,4.36404865,117450.0,117440.0,0.02545]
[1758232497543,4.36404865,117450.0,117440.0,0.0031]
[1758232501943,4.36404865,117450.0,117440.0,0.02545]
[1758232502932,4.36404865,117450.0,117440.0,0.0031]
[1758232503135,4.39023317,117450.0,117440.0,0.0031]
[1758232503742,4.10811805,117450.0,117440.0,0.0031]
[1758232510355,4.08193353,117450.0,117440.0,0.0031]
[1758232514269,4.08180934,117450.0,117440.0,0.0031]
[1758232517676,4.08157023,117450.0,117440.0,0.0031]
[1758232530184,4.08141049,117450.0,117440.0,0.0031]
[1758232530379,4.06176403,117450.0,117440.0,0.0031]
[1758232531186,4.08140632,117450.0,117440.0,0.0031]
[1758232533786,4.08186901,117450.0,117440.0,0.0031]
[1758232565811,4.7869487,117450.0,117440.0,0.0031]
[1758232568310,4.7869487,117450.0,117440.0,0.0243]
[1758232568524,4.36392961,117450.0,117440.0,0.0243]
[1758232569312,4.36392961,117450.0,117440.0,0.0031]
[1758232570910,4.7869487,117450.0,117440.0,0.0031]
[1758232575716,4.36392961,117450.0,117440.0,0.0031]
[1758232579014,4.7869487,117450.0,117440.0,0.0031]
[1758232580612,4.36392961,117450.0,117440.0,0.0243]
[1758232581818,4.36392961,117450.0,117440.0,0.0031]
[1758232582614,3.47392961,117450.0,117440.0,0.02603]
[1758232587520,3.47392961,117450.0,117440.0,0.0031]
[1758232590524,3.47390983,117450.0,117440.0,0.0031]
[1758232594024,3.47356112,117450.0,117440.0,0.0031]
[1758232625750,3.19150524,117450.0,117440.0,0.0031]
[1758232649371,3.17176875,117450.0,117440.0,0.0031]
[1758232666687,3.19138854,117450.0,117440.0,0.0031]
[1758232666891,3.17176875,117450.0,117440.0,0.0031]
[1758232668394,3.19138854,117450.0,117440.0,0.0031]
[1758232670290,3.17176875,117450.0,117440.0,0.0031]
[1758232670489,3.19153071,117450.0,117440.0,0.0031]
[1758232679389,3.19153071,117450.0,117440.0,0.0021]
[1758232679596,3.19453071,117450.0,117440.0,0.0021]
[1758232681294,3.47652186,117450.0,117440.0,0.0021]
[1758232681496,3.72652186,117450.0,117440.0,0.0021]
[1758232681794,3.75286233,117450.0,117440.0,0.0021]
[1758232682089,3.72652186,117450.0,117440.0,0.0021]
[1758232682689,0.03627,117440.0,117430.0,0.0001]
[1758232682888,0.03627,117410.0,117400.0,0.04705438]
[1758232683090,1.08646115,117410.0,117400.0,0.77705438]
[1758232685197,1.08746115,117410.0,117400.0,0.78005438]
[1758232685698,1.08746115,117410.0,117400.0,0.77167454]
[1758232686500,1.08746115,117410.0,117400.0,0.77267454]
[1758232687797,1.22862525,117410.0,117400.0,0.78128969]
[1758232688100,0.80547,117410.0,117400.0,0.78128969]
[1758232688297,1.22862525,117410.0,117400.0,0.78128969]
[1758232688699,1.6517805,117410.0,117400.0,0.78128969]
[1758232688994,1.6517805,117410.0,117400.0,0.59571]
[1758232689199,1.6517805,117410.0,117400.0,0.22571]
[1758232705506,0.8835805,117410.0,117400.0,0.22571]
[1758232705708,1.6518205,117410.0,117400.0,0.22571]
[1758232713218,1.6518205,117410.0,117400.0,0.204]
[1758232713519,1.9018205,117410.0,117400.0,0.204]
[1758232714325,1.9017805,117410.0,117400.0,0.004]
[1758232715332,2.32493575,117410.0,117400.0,0.004]
[1758232716335,1.55673575,117410.0,117400.0,0.004]
[1758232716530,2.32497575,117410.0,117400.0,0.004]
[1758232718539,4.11897575,117410.0,117400.0,0.004]
[1758232719338,3.86897575,117410.0,117400.0,0.004]
[1758232721638,3.10073575,117410.0,117400.0,0.004]
[1758232723535,0.03558,117400.0,117390.0,0.0171605]
[1758232723737,1.30504575,117400.0,117390.0,0.0169605]
[1758232724842,1.30604575,117400.0,117390.0,0.0209605]
[1758232725042,1.30604575,117400.0,117390.0,0.0219605]
[1758232725542,1.30604575,117400.0,117390.0,0.0199605]
[1758232728140,2.07432575,117400.0,117390.0,0.0199605]
[1758232729134,2.32432575,117400.0,117390.0,0.003]
[1758232729342,2.32436575,117400.0,117390.0,0.002]
[1758232729548,0.03558,117390.0,117380.0,0.0002]
[1758232729748,0.03558,117380.0,117370.0,0.00024]
[1758232730049,0.03558,117380.0,117370.0,4e-05]
[1758232730050,2.07336575,117380.0,117370.0,4e-05]
[1758232730447,1.30504575,117380.0,117370.0,4e-05]
[1758232730649,0.8818905,117380.0,117370.0,0.27113]
[1758232731040,1.6502105,117380.0,117370.0,0.27113]
[1758232731847,1.6522105,117380.0,117370.0,0.27613]
[1758232736447,1.6522505,117380.0,117370.0,0.27613]
[1758232736948,1.6522505,117380.0,117370.0,0.02613]
[1758232737655,2.07540575,117380.0,117370.0,0.00504]
[1758232749766,1.65294758,117380.0,117370.0,0.00504]
[1758232751559,0.88458758,117380.0,117370.0,0.00504]
[1758232751762,1.65310758,117380.0,117370.0,0.00504]
[1758232753768,1.65310758,117380.0,117370.0,0.00414]
[1758232754568,1.67941643,117380.0,117370.0,0.00414]
[1758232754969,1.67841643,117380.0,117370.0,0.004]
[1758232755171,0.0356,117370.0,117360.0,0.0002]
[1758232755370,0.0356,117360.0,117350.0,0.0002]
[1758232755569,0.0356,117350.0,117340.0,0.03881454]
[1758232755876,0.31793586,117350.0,117340.0,0.62861454]
[1758232756174,0.96125586,117350.0,117340.0,0.62861454]
[1758232756870,0.96125586,117350.0,117340.0,0.61104]
[1758232758072,0.31893586,117350.0,117340.0,0.61204]
[1758232758273,1.01305586,117350.0,117340.0,0.61204]
[1758232758571,1.01405586,117350.0,117340.0,0.61504]
[1758232758975,1.29639172,117350.0,117340.0,0.61504]
[1758232759271,0.73172,117350.0,117340.0,0.61504]
[1758232759672,1.29639172,117350.0,117340.0,0.61504]
[1758232759975,1.01405586,117350.0,117340.0,0.61504]
[1758232760173,1.29639172,117350.0,117340.0,0.61504]
[1758232762266,0.73172,117350.0,117340.0,0.61504]
[1758232762474,1.29639172,117350.0,117340.0,0.61504]
[1758232764074,0.60227172,117350.0,117340.0,0.61504]
[1758232764274,1.37119172,117350.0,117340.0,0.61504]
[1758232765072,1.08885586,117350.0,117340.0,0.61504]
[1758232765473,1.35255586,117350.0,117340.0,0.61504]
[1758232767078,1.42052357,117350.0,117340.0,0.61504]
[1758232770174,1.15682357,117350.0,117340.0,0.61504]
[1758232770378,1.42060357,117350.0,117340.0,0.61504]
[1758232771674,1.15690357,117350.0,117340.0,0.61504]
[1758232773479,1.15682357,117350.0,117340.0,0.61504]
[1758232774981,0.87448771,117350.0,117340.0,0.61504]
[1758232775182,1.15682357,117350.0,117340.0,0.61504]
[1758232776676,1.43915943,117350.0,117340.0,0.61504]
[1758232779377,1.15682357,117350.0,117340.0,0.61504]
[1758232780880,0.87448771,117350.0,117340.0,0.61504]
[1758232781080,1.15682357,117350.0,117340.0,0.61504]
[1758232781975,0.10556771,117350.0,117340.0,0.61504]
[1758232782279,1.16006357,117350.0,117340.0,0.61504]
[1758232782480,1.17967785,117350.0,117340.0,0.61504]
[1758232784083,0.90034199,117350.0,117340.0,0.61304]
[1758232784286,1.18267785,117350.0,117340.0,0.61304]
[1758232784482,1.18267785,117350.0,117340.0,0.61204]
[1758232784680,1.18367785,117350.0,117340.0,0.61304]
[1758232787487,0.41151785,117350.0,117340.0,0.61304]
[1758232787687,1.18379785,117350.0,117340.0,0.61304]